{"text_format":"3","workbook":"xlsx","n_sheets":4,"sheets":["Kezdés","Kiadások","Bevétel","Eredménykimutatás összegzése"],"not_rendered":{"charts":1},"read":"whole","date_system":"1900"}

{"sheet":"Kezdés","index":0,"n_rows":8,"n_cols":2,"rows_kept":8}
[null,"A SABLON ISMERTETÉSE"]
[null,"Ezzel az Esemény költségvetése nevű munkafüzettel nyomon követheti az események során jelentkező kiadásokat és bevételeket."]
[null,"A Kiadások és a Bevétel munkalapon adhatja meg az esemény nevét és a többi adatot."]
[null,"A sablon automatikusan kiszámítja az összes kiadást és az összes bevételt."]
[null,"Az Eredménykimutatás összegzése munkalapon automatikusan frissül az eredménykimutatás összegzése és a diagram."]
[null,"Megjegyzés: "]
[null,"Mindegyik munkalap A oszlopában további útmutatást olvashat. Ez a szöveg szándékosan van elrejtve. Ha törölni szeretné a szöveget, jelölje ki az A oszlopot, majd nyomja le a DELETE billentyűt. "]
[null,"Ha többet szeretne megtudni a táblázatokról, nyomja le a SHIFT+F10 billentyűkombinációt egy táblázaton belül, válassza a TÁBLÁZAT parancsot, majd a HELYETTESÍTŐ SZÖVEG elemet."]

{"sheet":"Kiadások","index":1,"n_rows":32,"n_cols":8,"rows_kept":32,"merged":[[0,1,0,2],[0,3,0,4],[2,1,3,1]]}
["Ezen a munkalapon a megfelelő táblázatokban adhatja meg a becsült és a tényleges kiadásokat, a D1 cellában pedig az esemény nevét megadva testre szabhatja ennek és a többi munkalapnak a címét. A H1 cellában található a munkalap alcíme. Ennek az oszlopnak a celláiban a munkalap használatát megkönnyítő útmutatás olvasható. A következő utasítás az A3 cellában található.","Rendezvény költségvetése:",null,"Esemény neve",{"$nulls":3},"KIADÁSOK"]
[]
["A jobbra lévő cellában az Összes kiadás, a G3 cellában a Becsült, a H3 cellában pedig a Tényleges felirat szerepel.","ÖSSZES KIADÁS",{"$nulls":4},"Becsült","Tényleges"]
["A sablon automatikusan kiszámítja a becsült összes kiadást a G4 cellában, valamint a tényleges összes kiadást a H4 cellában. A következő utasítás az A6 cellában található.",{"$nulls":5},{"$f":"SUM(C11,C19,C25,C32,FrissítőkKöltsége[[#Totals],[Becsült]],G19,G24)","v":{"v":882,"d":"882.00 Ft"}},{"$f":"SUM(D11,D19,D25,D32,FrissítőkKöltsége[[#Totals],[Tényleges]],H19,H24)","v":{"v":302,"d":"302.00 Ft"}}]
[]
["A jobbra lévő cellával kezdődő táblázatban adhatja meg a hely kiadásait, az F6 cellával kezdődőben pedig az üdítők kiadásait. A következő utasítás az A13 cellában található.","Hely","Becsült","Tényleges",null,"Üdítő","Becsült","Tényleges"]
[null,"Terembérlés díja",{"v":500,"d":"500.00 Ft"},null,null,"Étel"]
[null,"Személyzet a helyszínen",{"$nulls":3},"Ital",{"v":20,"d":"20.00 Ft"}]
[null,"Eszközök",{"$nulls":3},"Abroszok",null,{"v":20,"d":"20.00 Ft"}]
[null,"Asztalok és székek",{"$nulls":3},"Személyzet és borravaló"]
[null,"Összeg",{"$f":"SUBTOTAL(109,Helyköltségek[Becsült])","v":{"v":500,"d":"500.00 Ft"}},{"$f":"SUBTOTAL(103,Helyköltségek[Tényleges])","v":{"v":0,"d":"0.00 Ft"}},null,"Összeg",{"$f":"SUBTOTAL(109,FrissítőkKöltsége[Becsült])","v":{"v":20,"d":"20.00 Ft"}},{"$f":"SUBTOTAL(103,FrissítőkKöltsége[Tényleges])","v":{"v":1,"d":"1.00 Ft"}}]
[]
["A jobbra lévő cellával kezdődő táblázatban adhatja meg a dekorációs kiadásokat, az F13 cellával kezdődőben pedig a program kiadásait. A következő utasítás az A21 cellában található.","Dekoráció","Becsült","Tényleges",null,"Program","Becsült","Tényleges"]
[null,"Virág",{"v":200,"d":"200.00 Ft"},{"v":300,"d":"300.00 Ft"},null,"Művészek"]
[null,"Gyertyák",{"$nulls":3},"Előadók",{"v":30,"d":"30.00 Ft"}]
[null,"Világítás",{"$nulls":3},"Utazás"]
[null,"Léggömbök",{"$nulls":3},"Szállás"]
[null,"Papírkellékek",{"$nulls":3},"Egyéb"]
[null,"Összeg",{"$f":"SUBTOTAL(109,DekorációsKiadások[Becsült])","v":{"v":200,"d":"200.00 Ft"}},{"$f":"SUBTOTAL(109,DekorációsKiadások[Tényleges])","v":{"v":300,"d":"300.00 Ft"}},null,"Összeg",{"$f":"SUBTOTAL(109,ProgramKiadásai[Becsült])","v":{"v":30,"d":"30.00 Ft"}},{"$f":"SUBTOTAL(103,ProgramKiadásai[Tényleges])","v":{"v":0,"d":"0.00 Ft"}}]
[]
["A jobbra lévő cellával kezdődő táblázatban adhatja meg a hirdetési kiadásokat, az F21 cellával kezdődőben pedig a díjak kiadásait. A következő utasítás az A27 cellában található.","Hirdetés","Becsült","Tényleges",null,"Díjak","Becsült","Tényleges"]
[null,"Grafikus munka",{"$nulls":3},"Szalagok/emléktáblák/trófeák"]
[null,"Fénymásolás/nyomtatás",{"v":20,"d":"20.00 Ft"},null,null,"Ajándékok",{"v":100,"d":"100.00 Ft"}]
[null,"Postaköltség",{"$nulls":3},"Összeg",{"$f":"SUBTOTAL(109,DíjakKiadásai[Becsült])","v":{"v":100,"d":"100.00 Ft"}},{"$f":"SUBTOTAL(103,DíjakKiadásai[Tényleges])","v":{"v":0,"d":"0.00 Ft"}}]
[null,"Összeg",{"$f":"SUBTOTAL(109,HirdetésiKiadások[Becsült])","v":{"v":20,"d":"20.00 Ft"}},{"$f":"SUBTOTAL(103,HirdetésiKiadások[Tényleges])","v":{"v":0,"d":"0.00 Ft"}}]
[]
["A jobbra lévő cellában adhatja meg az egyéb kiadásokat.","Egyéb","Becsült","Tényleges"]
[null,"Telefon",null,{"v":13,"d":"13.00 Ft"}]
[null,"Közlekedés",{"v":12,"d":"12.00 Ft"}]
[null,"Papíráru"]
[null,"Faxolás"]
[null,"Összeg",{"$f":"SUBTOTAL(109,EgyébKiadások[Becsült])","v":{"v":12,"d":"12.00 Ft"}},{"$f":"SUBTOTAL(103,EgyébKiadások[Tényleges])","v":{"v":1,"d":"1.00 Ft"}}]

{"sheet":"Bevétel","index":2,"n_rows":29,"n_cols":7,"rows_kept":29,"merged":[[0,1,0,2],[2,1,3,1]]}
["Ezen a munkalapon adhatja meg az egyes kategóriák becsült és tényleges bevételét a megfelelő táblázatokban. A jobbra lévő cellában automatikusan frissül a munkalap címe. Az alcím a G1 cellában található. Ennek az oszlopnak a celláiban a munkalap használatát megkönnyítő útmutatás olvasható. A következő utasítás az A3 cellában található.",{"$f":"Kiadások!B1","v":"Rendezvény költségvetése:"},null,{"$f":"Kiadások!D1","v":"Esemény neve"},null,null,"BEVÉTEL"]
[]
["A jobbra lévő cellában az Összes bevétel, a F3 cellában a Becsült, a G3 cellában pedig a Tényleges felirat szerepel.","ÖSSZES BEVÉTEL",{"$nulls":3},"Becsült","Tényleges"]
["A sablon automatikusan kiszámítja a becsült összes bevételt az F4 cellában, valamint a tényleges összes bevételt a G4 cellában.",{"$nulls":4},{"$f":"SUM(Belépőjegyek[[#Totals],[Becsült bevétel]],HirdetésekAProgramban[[#Totals],[Becsült bevétel]],KiállítókÉsÁrusok[[#Totals],[Becsült bevétel]],TermékekÉrtékesítése[[#Totals],[Becsült bevétel]])","v":{"v":1936,"d":"1,936.00 Ft"}},{"$f":"SUM(Belépőjegyek[[#Totals],[Tényleges bevétel]],HirdetésekAProgramban[[#Totals],[Tényleges bevétel]],KiállítókÉsÁrusok[[#Totals],[Tényleges bevétel]],TermékekÉrtékesítése[[#Totals],[Tényleges bevétel]])","v":{"v":1831,"d":"1,831.00 Ft"}}]
["A jobbra lévő cellában szerepel a Belépőjegyek felirat.","BELÉPŐJEGYEK"]
["A jobbra lévő cellával kezdődő táblázatban adhatja meg a belépőjegyek becsült és tényleges számát, valamint a jegyek árát. A becsült és a tényleges bevételt a sablon automatikusan kiszámítja a Belépőjegyek táblázat alapján. A következő utasítás az A11 cellában található.","Becsült szám","Tényleges szám","Típus","Ár","Becsült bevétel","Tényleges bevétel"]
[null,300,278,"Felnőtt:",{"v":5,"d":"5.00 Ft"},{"$f":"B7*E7","v":{"v":1500,"d":"1,500.00 Ft"}},{"$f":"C7*E7","v":{"v":1390,"d":"1,390.00 Ft"}}]
[null,197,195,"Gyermek:",{"v":2,"d":"2.00 Ft"},{"$f":"B8*E8","v":{"v":394,"d":"394.00 Ft"}},{"$f":"C8*E8","v":{"v":390,"d":"390.00 Ft"}}]
[null,42,51,"Egyéb:",{"v":1,"d":"1.00 Ft"},{"$f":"B9*E9","v":{"v":42,"d":"42.00 Ft"}},{"$f":"C9*E9","v":{"v":51,"d":"51.00 Ft"}}]
[null,"Összeg",{"$nulls":3},{"$f":"SUBTOTAL(109,Belépőjegyek[Becsült bevétel])","v":{"v":1936,"d":"1,936.00 Ft"}},{"$f":"SUBTOTAL(109,Belépőjegyek[Tényleges bevétel])","v":{"v":1831,"d":"1,831.00 Ft"}}]
["A jobbra lévő cellában szerepel a Hirdetések a programfüzetben felirat.","HIRDETÉSEK A PROGRAMFÜZETBEN"]
["A jobbra lévő cellában kezdődő táblázatban adhatja meg a programfüzetben szereplő hirdetések becsült és tényleges számát, valamint azok díjait. A sablon automatikusan kiszámítja a becsült és a tényleges bevételt a hirdetések táblázata alapján. A következő utasítás az A17 cellában található.","Becsült szám","Tényleges szám","Típus","Ár","Becsült bevétel","Tényleges bevétel"]
[null,12,null,"Címlap:",null,{"$f":"B13*E13","v":{"v":0,"d":"0.00 Ft"}},{"$f":"C13*E13","v":{"v":0,"d":"0.00 Ft"}}]
[null,null,158,"Féloldalas:",null,{"$f":"B14*E14","v":{"v":0,"d":"0.00 Ft"}},{"$f":"C14*E14","v":{"v":0,"d":"0.00 Ft"}}]
[null,4,null,"Negyedoldalas:",null,{"$f":"B15*E15","v":{"v":0,"d":"0.00 Ft"}},{"$f":"C15*E15","v":{"v":0,"d":"0.00 Ft"}}]
[null,"Összeg",{"$nulls":3},{"$f":"SUBTOTAL(109,HirdetésekAProgramban[Becsült bevétel])","v":{"v":0,"d":"0.00 Ft"}},{"$f":"SUBTOTAL(109,HirdetésekAProgramban[Tényleges bevétel])","v":{"v":0,"d":"0.00 Ft"}}]
["A jobbra lévő cellában a Kiállítók/árusok felirat látható.","KIÁLLÍTÓK/ÁRUSOK"]
["A jobbra lévő cellával kezdődő táblázatban adhatja meg a kiállítók és az árusok becsült és tényleges számát, valamint a standok árát. A sablon automatikusan kiszámítja a becsült és a tényleges bevételt. A következő utasítás az A23 cellában található.","Becsült szám","Tényleges szám","Típus","Ár","Becsült bevétel","Tényleges bevétel"]
[null,23,null,"Nagy stand:",null,{"$f":"B19*E19","v":{"v":0,"d":"0.00 Ft"}},{"$f":"C19*E19","v":{"v":0,"d":"0.00 Ft"}}]
[null,354,null,"Közepes stand:",null,{"$f":"B20*E20","v":{"v":0,"d":"0.00 Ft"}},{"$f":"C20*E20","v":{"v":0,"d":"0.00 Ft"}}]
[null,56,null,"Kis stand:",null,{"$f":"B21*E21","v":{"v":0,"d":"0.00 Ft"}},{"$f":"C21*E21","v":{"v":0,"d":"0.00 Ft"}}]
[null,"Összeg",{"$nulls":3},{"$f":"SUBTOTAL(109,KiállítókÉsÁrusok[Becsült bevétel])","v":{"v":0,"d":"0.00 Ft"}},{"$f":"SUBTOTAL(109,KiállítókÉsÁrusok[Tényleges bevétel])","v":{"v":0,"d":"0.00 Ft"}}]
["A jobbra lévő cellában a Termékek értékesítése felirat szerepel.","TERMÉKEK ÉRTÉKESÍTÉSE"]
["A jobbra lévő cellában kezdődő táblázatban adhatja meg az eladott termékek becsült és tényleges számát, valamint azok árát. A sablon automatikusan kiszámítja a becsült és a tényleges bevételt.","Becsült szám","Tényleges szám","Típus","Ár","Becsült bevétel","Tényleges bevétel"]
[{"$nulls":3},"Termékek:",null,{"$f":"B25*E25","v":{"v":0,"d":"0.00 Ft"}},{"$f":"C25*E25","v":{"v":0,"d":"0.00 Ft"}}]
[null,123,null,"Termékek:",null,{"$f":"B26*E26","v":{"v":0,"d":"0.00 Ft"}},{"$f":"C26*E26","v":{"v":0,"d":"0.00 Ft"}}]
[{"$nulls":3},"Termékek:",null,{"$f":"B27*E27","v":{"v":0,"d":"0.00 Ft"}},{"$f":"C27*E27","v":{"v":0,"d":"0.00 Ft"}}]
[null,13,null,"Termékek:",null,{"$f":"B28*E28","v":{"v":0,"d":"0.00 Ft"}},{"$f":"C28*E28","v":{"v":0,"d":"0.00 Ft"}}]
[null,"Összeg",{"$nulls":3},{"$f":"SUBTOTAL(109,TermékekÉrtékesítése[Becsült bevétel])","v":{"v":0,"d":"0.00 Ft"}},{"$f":"SUBTOTAL(109,TermékekÉrtékesítése[Tényleges bevétel])","v":{"v":0,"d":"0.00 Ft"}}]

{"sheet":"Eredménykimutatás összegzése","index":3,"n_rows":8,"n_cols":7,"rows_kept":8,"merged":[[0,1,0,2]]}
["Ezen a munkalapon automatikusan frissül az eredménykimutatás összegzése és az összes bevételt és kiadást megjelenítő diagram. A jobbra lévő cellában automatikusan frissül a munkalap címe. Az alcím a G1 és a G2 cellában található. Ennek az oszlopnak a celláiban a munkalap használatát megkönnyítő útmutatás olvasható. A következő utasítás az A3 cellában található.",{"$f":"Kiadások!B1","v":"Rendezvény költségvetése:"},null,{"$f":"Kiadások!D1","v":"Esemény neve"},null,null,"EREDMÉNYKIMUTATÁS "]
[{"$nulls":6},"– Összegzés"]
["Az E3 cellában a becsült bevételt és kiadásokat a tényleges bevétellel és kiadásokkal összehasonlító sávdiagram látható.",{"$nulls":3},"Ebben a cellában a becsült bevételt és kiadásokat a tényleges bevétellel és kiadásokkal összehasonlító sávdiagram látható."]
["A jobbra lévő cellában kezdődő Összesítés táblázat automatikusan frissül. A következő utasítás az A8 cellában található."," Összesen","Becsült","Tényleges"]
[null,"Összes bevétel",{"$f":"Bevétel!F10","v":{"v":1936,"d":"1,936.00 Ft"}},{"$f":"Bevétel!F4","v":{"v":1936,"d":"1,936.00 Ft"}}]
[null,"Összes kiadás",{"$f":"Kiadások!G4","v":{"v":882,"d":"882.00 Ft"}},{"$f":"Kiadások!H4","v":{"v":302,"d":"302.00 Ft"}}]
[]
["A sablon automatikusan kiszámítja a C8 cellában a becsült összes nyereséget vagy veszteséget, a D8 cellában pedig a tényleges összes nyereséget vagy veszteséget.","Összes nyereség\n(vagy veszteség)",{"$f":"C5-C6","v":{"v":1054,"d":"1,054.00 Ft"}},{"$f":"D5-D6","v":{"v":1634,"d":"1,634.00 Ft"}}]